[Event "Chessable Masters - Torneo preliminare"]
[White "Sjugirov, Sanan"]
[Black "Ju, Wenjun"]
[WhiteFideId "4189302"]
[BlackFideId "8603006"]
[WhiteElo "2543"]
[BlackElo "2598"]
[Result "1-0"]
[Round "7"]
[TimeControl "600+2"]
[Date "2023.03.13"]
[WhiteClock "0:00:09"]
[BlackClock "0:00:12"]

1. d4 {[%clk 0:10:01]}  Nf6 {[%clk 0:09:59]} 2. c4 {[%clk 0:10:03]}  e6 {[%clk 0:10:01]} 3. Nc3 {[%clk 0:10:04]}  Bb4 {[%clk 0:10:02]} 4. Nf3 {[%clk 0:10:00]}  d5 {[%clk 0:10:00]} 5. Qa4+ {[%clk 0:09:32]}  Nc6 {[%clk 0:10:00]} 6. Bd2 {[%clk 0:09:11]}  O-O {[%clk 0:08:33]} 7. a3 {[%clk 0:09:09]}  Bxc3 {[%clk 0:08:18]} 8. Bxc3 {[%clk 0:09:10]}  Ne4 {[%clk 0:08:19]} 9. Qc2 {[%clk 0:09:00]}  b6 {[%clk 0:07:35]} 10. e3 {[%clk 0:08:56]}  Ba6 {[%clk 0:07:23]} 11. b4 {[%clk 0:07:50]}  Nxc3 {[%clk 0:06:13]} 12. Qxc3 {[%clk 0:07:49]}  Ne7 {[%clk 0:06:14]} 13. c5 {[%clk 0:07:14]}  Bxf1 {[%clk 0:06:11]} 14. Kxf1 {[%clk 0:07:16]}  Qe8 {[%clk 0:04:52]} 15. a4 {[%clk 0:06:41]}  b5 {[%clk 0:04:45]} 16. Ke2 {[%clk 0:05:57]}  bxa4 {[%clk 0:04:30]} 17. Qd3 {[%clk 0:05:52]}  f6 {[%clk 0:04:18]} 18. Qa6 {[%clk 0:05:23]}  Qf7 {[%clk 0:02:48]} 19. Rxa4 {[%clk 0:04:47]}  e5 {[%clk 0:02:45]} 20. Rha1 {[%clk 0:04:46]}  e4 {[%clk 0:02:39]} 21. Nd2 {[%clk 0:04:46]}  Qh5+ {[%clk 0:02:41]} 22. Ke1 {[%clk 0:04:47]}  c6 {[%clk 0:01:36]} 23. Qb7 {[%clk 0:04:28]}  Rae8 {[%clk 0:01:16]} 24. Nf1 {[%clk 0:03:56]}  f5 {[%clk 0:01:02]} 25. Rxa7 {[%clk 0:03:41]}  f4 {[%clk 0:01:03]} 26. exf4 {[%clk 0:03:42]}  Qg6 {[%clk 0:00:48]} 27. Ne3 {[%clk 0:03:34]}  Rxf4 {[%clk 0:00:47]} 28. Ra8 {[%clk 0:03:33]}  Rff8 {[%clk 0:00:46]} 29. Rxe8 {[%clk 0:03:31]}  Rxe8 {[%clk 0:00:43]} 30. Ra7 {[%clk 0:03:21]}  Qf6 {[%clk 0:00:39]} 31. Ra8 {[%clk 0:01:54]}  Rxa8 {[%clk 0:00:38]} 32. Qxa8+ {[%clk 0:01:56]}  Kf7 {[%clk 0:00:40]} 33. Qa1 {[%clk 0:01:56]}  h5 {[%clk 0:00:34]} 34. h3 {[%clk 0:01:29]}  g6 {[%clk 0:00:27]} 35. Kf1 {[%clk 0:01:25]}  Qf4 {[%clk 0:00:15]} 36. Kg1 {[%clk 0:01:25]}  Qb8 {[%clk 0:00:15]} 37. Qa4 {[%clk 0:00:46]}  Ke6 {[%clk 0:00:12]} 38. Nc2 {[%clk 0:00:30]}  Qf4 {[%clk 0:00:11]} 39. Ne3 {[%clk 0:00:30]}  Qb8 {[%clk 0:00:12]} 40. Kf1 {[%clk 0:00:23]}  Kd7 {[%clk 0:00:13]} 41. Ke2 {[%clk 0:00:22]}  Qb7 {[%clk 0:00:13]} 42. f3 {[%clk 0:00:17]}  exf3+ {[%clk 0:00:13]} 43. Kxf3 {[%clk 0:00:19]}  Qb8 {[%clk 0:00:14]} 44. Qa5 {[%clk 0:00:17]}  Qf8+ {[%clk 0:00:13]} 45. Ke2 {[%clk 0:00:18]}  Qb8 {[%clk 0:00:13]} 46. Qa4 {[%clk 0:00:09]}  Qf4 {[%clk 0:00:12]} 47. b5 {[%clk 0:00:08]}  Qxd4 {[%clk 0:00:12]} 48. Qxd4 {[%clk 0:00:09]} 1-0


[Site "Internet"]

[Event "Chessable Masters - Torneo preliminare"]
[White "Frolyanov, Dmitry"]
[Black "Lobanov, Sergei"]
[WhiteFideId "4151976"]
[BlackFideId "24183750"]
[WhiteElo "2451"]
[BlackElo "2436"]
[Result "1-0"]
[Round "7"]
[TimeControl "600+2"]
[Date "2023.03.13"]
[WhiteClock "0:04:16"]
[BlackClock "0:00:13"]

1. d4 {[%clk 0:10:01]}  Nf6 {[%clk 0:10:00]} 2. c4 {[%clk 0:10:01]}  e6 {[%clk 0:10:02]} 3. Nf3 {[%clk 0:10:02]}  d5 {[%clk 0:10:03]} 4. g3 {[%clk 0:10:02]}  Bb4+ {[%clk 0:10:01]} 5. Bd2 {[%clk 0:10:03]}  Be7 {[%clk 0:10:03]} 6. Bg2 {[%clk 0:10:04]}  O-O {[%clk 0:10:05]} 7. O-O {[%clk 0:10:04]}  c6 {[%clk 0:10:05]} 8. Qc2 {[%clk 0:10:05]}  b6 {[%clk 0:10:03]} 9. Rd1 {[%clk 0:10:02]}  Bb7 {[%clk 0:10:01]} 10. Bf4 {[%clk 0:10:00]}  Nbd7 {[%clk 0:09:52]} 11. Nbd2 {[%clk 0:10:00]}  Nh5 {[%clk 0:09:40]} 12. Be3 {[%clk 0:10:01]}  Nhf6 {[%clk 0:09:40]} 13. Bg5 {[%clk 0:09:49]}  h6 {[%clk 0:09:22]} 14. Bxf6 {[%clk 0:09:48]}  Nxf6 {[%clk 0:09:13]} 15. e4 {[%clk 0:09:49]}  dxe4 {[%clk 0:08:50]} 16. Nxe4 {[%clk 0:09:51]}  Nxe4 {[%clk 0:08:51]} 17. Qxe4 {[%clk 0:09:49]}  Qc7 {[%clk 0:08:48]} 18. Ne5 {[%clk 0:09:47]}  Rac8 {[%clk 0:08:48]} 19. Rac1 {[%clk 0:09:44]}  Bf6 {[%clk 0:08:42]} 20. c5 {[%clk 0:09:19]}  Rfd8 {[%clk 0:08:10]} 21. b4 {[%clk 0:09:17]}  Bxe5 {[%clk 0:06:08]} 22. Qxe5 {[%clk 0:09:12]}  bxc5 {[%clk 0:05:28]} 23. Qxc7 {[%clk 0:08:58]}  Rxc7 {[%clk 0:05:28]} 24. dxc5 {[%clk 0:08:59]}  Rcd7 {[%clk 0:05:02]} 25. Rxd7 {[%clk 0:08:57]}  Rxd7 {[%clk 0:05:04]} 26. b5 {[%clk 0:08:54]}  Rc7 {[%clk 0:04:48]} 27. b6 {[%clk 0:08:43]}  Rd7 {[%clk 0:04:32]} 28. Bf3 {[%clk 0:06:32]}  Kf8 {[%clk 0:04:26]} 29. a4 {[%clk 0:06:09]}  Ke7 {[%clk 0:01:38]} 30. a5 {[%clk 0:06:08]}  Rd8 {[%clk 0:01:31]} 31. a6 {[%clk 0:05:55]}  Bxa6 {[%clk 0:01:20]} 32. Ra1 {[%clk 0:05:40]}  Bb5 {[%clk 0:01:21]} 33. Rxa7+ {[%clk 0:05:33]}  Kf6 {[%clk 0:01:10]} 34. Rc7 {[%clk 0:05:31]}  Ke5 {[%clk 0:00:41]} 35. Kg2 {[%clk 0:04:40]}  g5 {[%clk 0:00:15]} 36. Bxc6 {[%clk 0:04:26]}  Ba6 {[%clk 0:00:16]} 37. Rxf7 {[%clk 0:04:15]}  Rd1 {[%clk 0:00:13]} 38. f4+ {[%clk 0:04:16]} 1-0


[Site "Internet"]

[Event "Chessable Masters - Torneo preliminare"]
[White "Christiansen, Johan-Sebastian"]
[Black "Hammer, Jon Ludvig"]
[WhiteFideId "1512668"]
[BlackFideId "1503707"]
[WhiteElo "2481"]
[BlackElo "2647"]
[Result "1-0"]
[Round "7"]
[TimeControl "600+2"]
[Date "2023.03.13"]
[WhiteClock "0:00:07"]
[BlackClock "0:00:03"]

1. e4 {[%clk 0:10:01]}  e5 {[%clk 0:09:58]} 2. Nf3 {[%clk 0:10:02]}  Nc6 {[%clk 0:09:59]} 3. Nc3 {[%clk 0:10:04]}  Nf6 {[%clk 0:09:59]} 4. a3 {[%clk 0:10:06]}  g6 {[%clk 0:09:36]} 5. Nxe5 {[%clk 0:10:06]}  Nxe5 {[%clk 0:09:37]} 6. d4 {[%clk 0:10:08]}  Nc6 {[%clk 0:09:35]} 7. d5 {[%clk 0:10:09]}  Bg7 {[%clk 0:09:28]} 8. dxc6 {[%clk 0:10:10]}  bxc6 {[%clk 0:09:28]} 9. Bd3 {[%clk 0:10:12]}  O-O {[%clk 0:09:28]} 10. O-O {[%clk 0:10:14]}  Re8 {[%clk 0:08:52]} 11. Bg5 {[%clk 0:10:15]}  h6 {[%clk 0:08:51]} 12. Bh4 {[%clk 0:10:16]}  g5 {[%clk 0:08:32]} 13. Bg3 {[%clk 0:10:17]}  d5 {[%clk 0:07:05]} 14. Re1 {[%clk 0:10:15]}  Rb8 {[%clk 0:06:14]} 15. Rb1 {[%clk 0:10:09]}  dxe4 {[%clk 0:03:50]} 16. Nxe4 {[%clk 0:10:11]}  Nxe4 {[%clk 0:03:51]} 17. Bxe4 {[%clk 0:09:47]}  Qxd1 {[%clk 0:03:17]} 18. Rbxd1 {[%clk 0:09:49]}  Rxb2 {[%clk 0:03:18]} 19. Bh7+ {[%clk 0:08:51]}  Kf8 {[%clk 0:03:19]} 20. Bxc7 {[%clk 0:08:43]}  Rxe1+ {[%clk 0:03:12]} 21. Rxe1 {[%clk 0:08:45]}  Be6 {[%clk 0:02:53]} 22. Bd6+ {[%clk 0:08:46]}  Ke8 {[%clk 0:02:53]} 23. Be4 {[%clk 0:08:48]}  Kd7 {[%clk 0:02:38]} 24. Bb4 {[%clk 0:08:08]}  Kc7 {[%clk 0:02:21]} 25. h3 {[%clk 0:08:01]}  Kb6 {[%clk 0:02:18]} 26. Rd1 {[%clk 0:07:54]}  f5 {[%clk 0:01:39]} 27. Bd3 {[%clk 0:07:21]}  c5 {[%clk 0:01:40]} 28. Re1 {[%clk 0:07:02]}  Ba2 {[%clk 0:01:10]} 29. Bd2 {[%clk 0:05:23]}  f4 {[%clk 0:00:33]} 30. Re7 {[%clk 0:04:23]}  Bd4 {[%clk 0:00:26]} 31. Kf1 {[%clk 0:02:40]}  c4 {[%clk 0:00:27]} 32. Be4 {[%clk 0:02:33]}  c3 {[%clk 0:00:28]} 33. Bc1 {[%clk 0:01:44]}  Bc4+ {[%clk 0:00:29]} 34. Ke1 {[%clk 0:01:45]}  Ra2 {[%clk 0:00:31]} 35. Rb7+ {[%clk 0:01:43]}  Ka6 {[%clk 0:00:32]} 36. Rb4 {[%clk 0:01:42]}  Ra1 {[%clk 0:00:24]} 37. Rxc4 {[%clk 0:01:20]}  Rxc1+ {[%clk 0:00:25]} 38. Ke2 {[%clk 0:01:22]}  Bb6 {[%clk 0:00:13]} 39. Rxc3 {[%clk 0:00:57]}  Ra1 {[%clk 0:00:14]} 40. Rb3 {[%clk 0:00:54]}  Ka5 {[%clk 0:00:10]} 41. Bd3 {[%clk 0:00:49]}  a6 {[%clk 0:00:10]} 42. Rc3 {[%clk 0:00:44]}  Bd4 {[%clk 0:00:03]} 43. Rc6 {[%clk 0:00:16]}  Rxa3 {[%clk 0:00:04]} 44. Rxa6+ {[%clk 0:00:18]}  Kb4 {[%clk 0:00:06]} 45. Rxh6 {[%clk 0:00:18]}  Ra5 {[%clk 0:00:05]} 46. Kf3 {[%clk 0:00:17]}  Re5 {[%clk 0:00:04]} 47. Rd6 {[%clk 0:00:17]}  Kc3 {[%clk 0:00:05]} 48. Bg6 {[%clk 0:00:09]}  Bc5 {[%clk 0:00:04]} 49. Rd3+ {[%clk 0:00:09]}  Kc4 {[%clk 0:00:04]} 50. Bf7+ {[%clk 0:00:10]}  Kb4 {[%clk 0:00:05]} 51. Rb3+ {[%clk 0:00:12]}  Ka5 {[%clk 0:00:05]} 52. Bg6 {[%clk 0:00:12]}  Bb4 {[%clk 0:00:04]} 53. Bd3 {[%clk 0:00:13]}  Ka4 {[%clk 0:00:02]} 54. Kg4 {[%clk 0:00:13]}  Bc5 {[%clk 0:00:03]} 55. Rb5 {[%clk 0:00:14]}  f3 {[%clk 0:00:03]} 56. Kxf3 {[%clk 0:00:14]}  Rd5 {[%clk 0:00:02]} 57. Ke2 {[%clk 0:00:08]}  Re5+ {[%clk 0:00:03]} 58. Kf1 {[%clk 0:00:10]}  Rd5 {[%clk 0:00:04]} 59. g3 {[%clk 0:00:10]}  Re5 {[%clk 0:00:04]} 60. Kg2 {[%clk 0:00:11]}  Rd5 {[%clk 0:00:05]} 61. h4 {[%clk 0:00:12]}  gxh4 {[%clk 0:00:06]} 62. gxh4 {[%clk 0:00:14]}  Rh5 {[%clk 0:00:06]} 63. Kh3 {[%clk 0:00:13]}  Rd5 {[%clk 0:00:08]} 64. Kg2 {[%clk 0:00:10]}  Rh5 {[%clk 0:00:08]} 65. Be2 {[%clk 0:00:10]}  Re5 {[%clk 0:00:07]} 66. h5 {[%clk 0:00:04]}  Rf5 {[%clk 0:00:05]} 67. h6 {[%clk 0:00:04]}  Rxf2+ {[%clk 0:00:04]} 68. Kg3 {[%clk 0:00:06]}  Rxe2 {[%clk 0:00:03]} 69. Rxc5 {[%clk 0:00:06]}  Re6 {[%clk 0:00:02]} 70. Rh5 {[%clk 0:00:06]}  Re8 {[%clk 0:00:03]} 71. h7 {[%clk 0:00:07]} 1-0


[Site "Internet"]

[Event "Chessable Masters - Torneo preliminare"]
[White "Smirnov, Pavel"]
[Black "Preotu, Razvan"]
[WhiteFideId "4123425"]
[BlackFideId "2613280"]
[WhiteElo "2470"]
[BlackElo "2532"]
[Result "1-0"]
[Round "7"]
[TimeControl "600+2"]
[Date "2023.03.13"]
[WhiteClock "0:02:01"]
[BlackClock "0:00:06"]

1. d4 {[%clk 0:10:01]}  Nf6 {[%clk 0:09:59]} 2. c4 {[%clk 0:10:02]}  g6 {[%clk 0:10:00]} 3. g3 {[%clk 0:10:03]}  c6 {[%clk 0:10:01]} 4. Nf3 {[%clk 0:10:04]}  d5 {[%clk 0:10:03]} 5. b3 {[%clk 0:10:03]}  Bg7 {[%clk 0:10:03]} 6. Bg2 {[%clk 0:10:04]}  O-O {[%clk 0:10:03]} 7. O-O {[%clk 0:10:05]}  dxc4 {[%clk 0:10:04]} 8. bxc4 {[%clk 0:10:06]}  c5 {[%clk 0:10:06]} 9. Bb2 {[%clk 0:10:06]}  cxd4 {[%clk 0:10:04]} 10. Nxd4 {[%clk 0:10:06]}  Qb6 {[%clk 0:10:00]} 11. Qc1 {[%clk 0:10:04]}  Bd7 {[%clk 0:09:53]} 12. Nd2 {[%clk 0:10:01]}  Nc6 {[%clk 0:09:53]} 13. Nc2 {[%clk 0:09:48]}  Rfd8 {[%clk 0:09:11]} 14. Rb1 {[%clk 0:09:48]}  Qa6 {[%clk 0:08:55]} 15. Bc3 {[%clk 0:09:46]}  Rac8 {[%clk 0:06:29]} 16. Qb2 {[%clk 0:09:31]}  Bf5 {[%clk 0:06:29]} 17. e4 {[%clk 0:09:11]}  Rxd2 {[%clk 0:05:13]} 18. exf5 {[%clk 0:09:11]}  Ne8 {[%clk 0:05:14]} 19. Bxg7 {[%clk 0:08:37]}  Nxg7 {[%clk 0:05:16]} 20. f6 {[%clk 0:07:56]}  Qxc4 {[%clk 0:04:12]} 21. Qxb7 {[%clk 0:06:39]}  Nd8 {[%clk 0:02:58]} 22. Qxe7 {[%clk 0:06:19]}  Rxc2 {[%clk 0:02:50]} 23. fxg7 {[%clk 0:05:19]}  Ne6 {[%clk 0:02:12]} 24. Rb7 {[%clk 0:04:05]}  Rc7 {[%clk 0:01:36]} 25. Rxc7 {[%clk 0:03:09]}  Qxc7 {[%clk 0:01:38]} 26. Qf6 {[%clk 0:02:46]}  Qc3 {[%clk 0:01:38]} 27. Qxc3 {[%clk 0:02:37]}  Rxc3 {[%clk 0:01:39]} 28. Bd5 {[%clk 0:02:37]}  Rc5 {[%clk 0:01:03]} 29. Rd1 {[%clk 0:02:32]}  Kxg7 {[%clk 0:01:02]} 30. Bxe6 {[%clk 0:02:30]}  fxe6 {[%clk 0:01:04]} 31. Rd7+ {[%clk 0:02:31]}  Kf6 {[%clk 0:01:03]} 32. Rxa7 {[%clk 0:02:29]}  Rc2 {[%clk 0:00:59]} 33. a4 {[%clk 0:02:28]}  Ra2 {[%clk 0:01:00]} 34. a5 {[%clk 0:02:26]}  g5 {[%clk 0:01:00]} 35. a6 {[%clk 0:02:18]}  h5 {[%clk 0:01:00]} 36. Ra8 {[%clk 0:02:08]}  g4 {[%clk 0:00:47]} 37. a7 {[%clk 0:02:01]}  Kg7 {[%clk 0:00:47]} 38. Kf1 {[%clk 0:02:00]}  Ra4 {[%clk 0:00:18]} 39. Ke2 {[%clk 0:02:01]}  Ra3 {[%clk 0:00:20]} 40. Kd2 {[%clk 0:02:01]}  Kh7 {[%clk 0:00:17]} 41. Kc2 {[%clk 0:02:01]}  Kg7 {[%clk 0:00:18]} 42. Kb2 {[%clk 0:02:02]}  Ra5 {[%clk 0:00:17]} 43. Kc3 {[%clk 0:02:03]}  Ra4 {[%clk 0:00:17]} 44. Kb3 {[%clk 0:02:04]}  Ra1 {[%clk 0:00:16]} 45. Kb4 {[%clk 0:02:03]}  Rb1+ {[%clk 0:00:09]} 46. Kc5 {[%clk 0:02:04]}  Ra1 {[%clk 0:00:09]} 47. Kd6 {[%clk 0:02:00]}  Ra6+ {[%clk 0:00:07]} 48. Ke5 {[%clk 0:02:01]}  Kh7 {[%clk 0:00:06]} 49. Kf6 {[%clk 0:02:01]} 1-0


[Site "Internet"]

[Event "Chessable Masters - Torneo preliminare"]
[White "Aditya, Mittal"]
[Black "Ibarra Jerez, Jose Carlos"]
[WhiteFideId "35042025"]
[BlackFideId "2226332"]
[WhiteElo "2386"]
[BlackElo "2546"]
[Result "1/2-1/2"]
[Round "7"]
[TimeControl "600+2"]
[Date "2023.03.13"]
[WhiteClock "0:05:42"]
[BlackClock "0:04:31"]

1. d4 {[%clk 0:10:01]}  Nf6 {[%clk 0:10:01]} 2. c4 {[%clk 0:10:03]}  d6 {[%clk 0:10:02]} 3. Nc3 {[%clk 0:10:02]}  e5 {[%clk 0:10:03]} 4. Nf3 {[%clk 0:10:04]}  e4 {[%clk 0:10:04]} 5. Ng5 {[%clk 0:09:38]}  Qe7 {[%clk 0:10:04]} 6. Qc2 {[%clk 0:09:29]}  Bf5 {[%clk 0:10:04]} 7. f3 {[%clk 0:07:59]}  Nc6 {[%clk 0:09:54]} 8. Be3 {[%clk 0:07:59]}  exf3 {[%clk 0:09:24]} 9. Qxf5 {[%clk 0:07:58]}  Qxe3 {[%clk 0:09:08]} 10. Nxf3 {[%clk 0:07:46]}  Nxd4 {[%clk 0:08:54]} 11. Nxd4 {[%clk 0:07:41]}  Qxd4 {[%clk 0:08:56]} 12. Qb5+ {[%clk 0:07:42]}  Kd8 {[%clk 0:07:20]} 13. Qxb7 {[%clk 0:07:29]}  Rc8 {[%clk 0:07:19]} 14. Rd1 {[%clk 0:07:19]}  Qb6 {[%clk 0:06:57]} 15. Qxb6 {[%clk 0:07:17]}  axb6 {[%clk 0:06:59]} 16. g3 {[%clk 0:07:07]}  g6 {[%clk 0:06:26]} 17. Bg2 {[%clk 0:07:05]}  Nd7 {[%clk 0:05:57]} 18. Nb5 {[%clk 0:06:52]}  Ne5 {[%clk 0:05:45]} 19. Na7 {[%clk 0:06:50]}  Rb8 {[%clk 0:05:10]} 20. Nc6+ {[%clk 0:06:50]}  Nxc6 {[%clk 0:05:10]} 21. Bxc6 {[%clk 0:06:52]}  Bg7 {[%clk 0:05:09]} 22. O-O {[%clk 0:06:49]}  Ke7 {[%clk 0:05:10]} 23. b3 {[%clk 0:06:46]}  f5 {[%clk 0:04:57]} 24. e4 {[%clk 0:06:44]}  fxe4 {[%clk 0:04:55]} 25. Bxe4 {[%clk 0:06:16]}  c5 {[%clk 0:04:37]} 26. Bd5 {[%clk 0:05:38]}  Rhf8 {[%clk 0:04:36]} 27. Rxf8 {[%clk 0:05:38]}  Rxf8 {[%clk 0:04:37]} 28. Rf1 {[%clk 0:05:40]}  Bd4+ {[%clk 0:04:37]} 29. Kg2 {[%clk 0:05:40]}  Rxf1 {[%clk 0:04:37]} 30. Kxf1 {[%clk 0:05:42]}  Kf6 {[%clk 0:04:31]} 1/2-1/2


[Site "Internet"]

[Event "Chessable Masters - Torneo preliminare"]
[White "Cardoso Cardoso, Jose Gabriel"]
[Black "Mitrabha, Guha"]
[WhiteFideId "4430492"]
[BlackFideId "5057000"]
[WhiteElo "2425"]
[BlackElo "2401"]
[Result "1-0"]
[Round "7"]
[TimeControl "600+2"]
[Date "2023.03.13"]
[WhiteClock "0:00:08"]
[BlackClock "0:03:52"]

1. d4 {[%clk 0:10:01]}  Nf6 {[%clk 0:09:47]} 2. c4 {[%clk 0:10:01]}  e6 {[%clk 0:09:47]} 3. Nc3 {[%clk 0:10:02]}  Bb4 {[%clk 0:09:48]} 4. e3 {[%clk 0:10:01]}  O-O {[%clk 0:09:49]} 5. Bd3 {[%clk 0:09:59]}  d5 {[%clk 0:09:49]} 6. Nf3 {[%clk 0:09:59]}  dxc4 {[%clk 0:09:49]} 7. Bxc4 {[%clk 0:10:00]}  c5 {[%clk 0:09:49]} 8. O-O {[%clk 0:09:58]}  cxd4 {[%clk 0:09:41]} 9. exd4 {[%clk 0:09:59]}  b6 {[%clk 0:09:43]} 10. Bg5 {[%clk 0:09:46]}  Bb7 {[%clk 0:09:41]} 11. Rc1 {[%clk 0:09:45]}  h6 {[%clk 0:09:37]} 12. Bh4 {[%clk 0:09:37]}  Bxc3 {[%clk 0:09:38]} 13. bxc3 {[%clk 0:09:33]}  Nbd7 {[%clk 0:09:39]} 14. Bd3 {[%clk 0:09:08]}  Rc8 {[%clk 0:09:24]} 15. Re1 {[%clk 0:08:55]}  Qe7 {[%clk 0:08:52]} 16. c4 {[%clk 0:08:48]}  Qa3 {[%clk 0:08:36]} 17. Qb3 {[%clk 0:07:57]}  Qxb3 {[%clk 0:08:18]} 18. axb3 {[%clk 0:07:57]}  Bxf3 {[%clk 0:08:20]} 19. gxf3 {[%clk 0:07:58]}  a5 {[%clk 0:08:22]} 20. Bg3 {[%clk 0:07:42]}  Rfd8 {[%clk 0:08:21]} 21. Red1 {[%clk 0:06:33]}  Nb8 {[%clk 0:07:46]} 22. c5 {[%clk 0:06:32]}  Nd5 {[%clk 0:07:29]} 23. Bd6 {[%clk 0:06:23]}  Nb4 {[%clk 0:07:10]} 24. Bb5 {[%clk 0:06:18]}  N8c6 {[%clk 0:07:04]} 25. Kg2 {[%clk 0:05:42]}  Na7 {[%clk 0:06:49]} 26. Be2 {[%clk 0:04:58]}  Nac6 {[%clk 0:06:32]} 27. f4 {[%clk 0:04:38]}  Rxd6 {[%clk 0:06:26]} 28. cxd6 {[%clk 0:04:38]}  Rd8 {[%clk 0:06:28]} 29. Bf3 {[%clk 0:04:03]}  Rxd6 {[%clk 0:06:28]} 30. Bxc6 {[%clk 0:03:39]}  Nxc6 {[%clk 0:06:28]} 31. Rc4 {[%clk 0:03:34]}  g6 {[%clk 0:06:23]} 32. Rdc1 {[%clk 0:03:22]}  Nb4 {[%clk 0:06:10]} 33. Kf3 {[%clk 0:03:12]}  Rd5 {[%clk 0:06:10]} 34. h3 {[%clk 0:02:58]}  Rf5 {[%clk 0:06:11]} 35. d5 {[%clk 0:02:28]}  Nxd5 {[%clk 0:06:06]} 36. Kg3 {[%clk 0:02:29]}  Kg7 {[%clk 0:06:05]} 37. Rd4 {[%clk 0:02:28]}  h5 {[%clk 0:06:05]} 38. Rc6 {[%clk 0:02:18]}  Rf6 {[%clk 0:06:06]} 39. Re4 {[%clk 0:02:07]}  Kh6 {[%clk 0:06:02]} 40. h4 {[%clk 0:01:58]}  Kg7 {[%clk 0:06:01]} 41. Rd6 {[%clk 0:01:55]}  Rf5 {[%clk 0:05:51]} 42. Rc6 {[%clk 0:01:53]}  Nf6 {[%clk 0:05:51]} 43. Re5 {[%clk 0:01:52]}  Rxe5 {[%clk 0:04:48]} 44. fxe5 {[%clk 0:01:52]}  Nd5 {[%clk 0:04:50]} 45. Rc8 {[%clk 0:01:36]}  Nb4 {[%clk 0:04:49]} 46. Rb8 {[%clk 0:01:31]}  Nd5 {[%clk 0:04:47]} 47. Kf3 {[%clk 0:01:20]}  Kh6 {[%clk 0:04:39]} 48. Rb7 {[%clk 0:01:16]}  Kg7 {[%clk 0:04:38]} 49. Ke4 {[%clk 0:01:04]}  Kf8 {[%clk 0:04:39]} 50. Rb8+ {[%clk 0:00:43]}  Ke7 {[%clk 0:04:38]} 51. Rb7+ {[%clk 0:00:44]}  Ke8 {[%clk 0:04:39]} 52. Rb8+ {[%clk 0:00:44]}  Ke7 {[%clk 0:04:38]} 53. Rb7+ {[%clk 0:00:45]}  Kf8 {[%clk 0:04:40]} 54. Rb8+ {[%clk 0:00:46]}  Kg7 {[%clk 0:04:42]} 55. Rb7 {[%clk 0:00:38]}  Kg8 {[%clk 0:04:39]} 56. f4 {[%clk 0:00:30]}  Kg7 {[%clk 0:04:38]} 57. Rb8 {[%clk 0:00:27]}  Kh7 {[%clk 0:04:31]} 58. Rb7 {[%clk 0:00:23]}  Kg8 {[%clk 0:04:31]} 59. Rb8+ {[%clk 0:00:23]}  Kg7 {[%clk 0:04:33]} 60. Rb7 {[%clk 0:00:22]}  b5 {[%clk 0:04:34]} 61. Kf3 {[%clk 0:00:17]}  Nc3 {[%clk 0:04:34]} 62. Rc7 {[%clk 0:00:12]}  Nb1 {[%clk 0:04:31]} 63. Ke3 {[%clk 0:00:07]}  b4 {[%clk 0:04:21]} 64. Ra7 {[%clk 0:00:06]}  Na3 {[%clk 0:04:18]} 65. Rxa5 {[%clk 0:00:06]}  Nc2+ {[%clk 0:04:20]} 66. Ke4 {[%clk 0:00:05]}  Kf8 {[%clk 0:04:18]} 67. Rc5 {[%clk 0:00:04]}  Na1 {[%clk 0:04:19]} 68. Rb5 {[%clk 0:00:03]}  Nxb3 {[%clk 0:04:21]} 69. Rxb4 {[%clk 0:00:04]}  Nc5+ {[%clk 0:04:21]} 70. Kd4 {[%clk 0:00:05]}  Nd7 {[%clk 0:04:19]} 71. Rb7 {[%clk 0:00:05]}  Ke8 {[%clk 0:04:20]} 72. Kc4 {[%clk 0:00:06]}  Nf8 {[%clk 0:04:14]} 73. Kc5 {[%clk 0:00:06]}  Nh7 {[%clk 0:04:12]} 74. Rb8+ {[%clk 0:00:04]}  Ke7 {[%clk 0:04:13]} 75. Rh8 {[%clk 0:00:02]}  Nf8 {[%clk 0:04:13]} 76. Kc6 {[%clk 0:00:04]}  g5 {[%clk 0:04:08]} 77. Rxf8 {[%clk 0:00:03]}  Kxf8 {[%clk 0:04:08]} 78. fxg5 {[%clk 0:00:04]}  Ke7 {[%clk 0:04:04]} 79. Kc7 {[%clk 0:00:06]}  Kf8 {[%clk 0:04:01]} 80. Kd7 {[%clk 0:00:06]}  Kg8 {[%clk 0:04:01]} 81. Ke8 {[%clk 0:00:07]}  Kg7 {[%clk 0:03:57]} 82. Ke7 {[%clk 0:00:08]}  Kg6 {[%clk 0:03:52]} 83. Kf8 {[%clk 0:00:08]} 1-0


[Site "Internet"]

[Event "Chessable Masters - Torneo preliminare"]
[White "Vetoshko, Volodymyr"]
[Black "Steinberg, Nitzan"]
[WhiteFideId "14122480"]
[BlackFideId "2801795"]
[WhiteElo "2457"]
[BlackElo "2500"]
[Result "1/2-1/2"]
[Round "7"]
[TimeControl "600+2"]
[Date "2023.03.13"]
[WhiteClock "0:01:58"]
[BlackClock "0:02:18"]

1. e4 {[%clk 0:10:01]}  c5 {[%clk 0:10:00]} 2. Nf3 {[%clk 0:10:01]}  d6 {[%clk 0:10:01]} 3. d4 {[%clk 0:10:01]}  cxd4 {[%clk 0:10:03]} 4. Nxd4 {[%clk 0:10:03]}  Nf6 {[%clk 0:10:04]} 5. Nc3 {[%clk 0:10:04]}  a6 {[%clk 0:10:06]} 6. Be2 {[%clk 0:10:05]}  e5 {[%clk 0:10:06]} 7. Nb3 {[%clk 0:10:06]}  Be7 {[%clk 0:10:07]} 8. Bg5 {[%clk 0:10:07]}  Be6 {[%clk 0:10:00]} 9. Bxf6 {[%clk 0:10:07]}  Bxf6 {[%clk 0:10:01]} 10. Qd3 {[%clk 0:10:08]}  Nc6 {[%clk 0:09:44]} 11. O-O-O {[%clk 0:10:08]}  Be7 {[%clk 0:08:19]} 12. Nd5 {[%clk 0:10:01]}  Bg5+ {[%clk 0:08:20]} 13. Kb1 {[%clk 0:10:00]}  a5 {[%clk 0:08:22]} 14. h4 {[%clk 0:09:38]}  Bh6 {[%clk 0:08:22]} 15. Qb5 {[%clk 0:07:49]}  Ra7 {[%clk 0:07:38]} 16. a4 {[%clk 0:06:37]}  O-O {[%clk 0:07:39]} 17. g4 {[%clk 0:06:35]}  Bf4 {[%clk 0:07:11]} 18. Nxf4 {[%clk 0:05:46]}  exf4 {[%clk 0:07:12]} 19. Nd4 {[%clk 0:04:19]}  Ne5 {[%clk 0:05:01]} 20. f3 {[%clk 0:03:58]}  Qc7 {[%clk 0:04:23]} 21. Rd2 {[%clk 0:03:15]}  Raa8 {[%clk 0:02:59]} 22. Rhd1 {[%clk 0:03:10]}  Rad8 {[%clk 0:03:00]} 23. h5 {[%clk 0:02:17]}  h6 {[%clk 0:02:40]} 24. Rg1 {[%clk 0:02:08]}  Qc5 {[%clk 0:02:21]} 25. Rgd1 {[%clk 0:01:58]}  Qc7 {[%clk 0:02:18]} 1/2-1/2


[Site "Internet"]